[Event "4th Chessfestival Gredine 2018"]
[Site "Ortisei"]
[Date "2018.06.19"]
[Round "4.16"]
[White "Vaishali R"]
[Black "Panjkovic, Aleksandar"]
[Result "1-0"]
[ECO "B12"]
[WhiteElo "2310"]
[BlackElo "2126"]
[Annotator "NA"]
[PlyCount "79"]
[EventDate "2018.06.16"]
[EventType "swiss"]
[EventCountry "ITA"]
[SourceTitle "playchess.com"]
[Source "ChessBase"]
[SourceQuality "1"]
[TimeControl "40/5400+30:1800+30"]

1. e4 {[%emt 0:00:30]} d6 {[%emt 0:01:00]} 2. d4 {[%emt 0:00:00]} c6 {[%emt 0:00:30]} 3. Nc3 {[%emt 0:02:00]} Qc7 {[%emt 0:00:30]} 4. a4 {[%emt 0:00:30] B12: Caro-Kann (Vorstoß-Variante)} (4. f4 e5 5. Nf3 Bg4 6. Be3 Nd7 7. h3 Bxf3 8. Qxf3 Ngf6 9. g4 O-O-O 10. O-O-O h6 11. Bc4 Nb6 12. Bb3 {1-0 (21) Leko,P (2693)-Auzins,A (2151) Tallinn 2016}) 4... e5 {[%emt 0:01:30]} 5. Bc4 {[%emt 0:01:30]} Nf6 {[%emt 0:01:30]} 6. Nge2 {[%emt 0:09:30]} Be7 {[%emt 0:00:30]} 7. O-O {[%emt 0:00:30]} O-O {[%emt 0:00:30]} 8. d5 {[%emt 0:02:30]} Nbd7 {[%emt 0:06:30]} 9. a5 $146 {[%emt 0:01:30]} ({Vorgänger:} 9. Bg5 Nb6 10. Bxf6 Bxf6 11. Bb3 a5 12. Qd3 {0-1 (40) Paris,G (1849)-Molina,F (2276) Campodarsego 2005}) 9... b5 {[%emt 0:05:30]} 10. dxc6 {[%emt 0:02:30]} bxc4 {[%emt 0:00:30]} 11. cxd7 {[%emt 0:00:00]} Bxd7 {[%emt 0:01:30]} 12. Bg5 {[%emt 0:01:00]} Bc6 {[%emt 0:09:30]} 13. Bxf6 {[%emt 0:01:30]} Bxf6 {[%emt 0:00:30]} 14. Nd5 {[%emt 0:00:30]} Bxd5 {[%emt 0:07:30]} 15. Qxd5 {[%emt 0:00:00]} Rab8 {[%emt 0:01:30]} 16. Rfb1 {[%emt 0:05:00]} Rfc8 {[%emt 0:02:30]} 17. Nc3 {[%emt 0:04:30]} Qc5 {[%emt 0:01:30]} 18. Qd2 {[%emt 0:18:30]} Bd8 {[%emt 0:00:30]} 19. Nd5 {[%emt 0:02:30]} Rb5 $14 {[%emt 0:04:30]} 20. b4 {[%emt 0:02:30]} c3 {[%emt 0:22:30]} 21. Qe1 {[%emt 0:08:30]} Qc6 {[%emt 0:09:30]} 22. Rb3 {[%emt 0:03:30]} f5 {[%emt 0:02:24]} 23. Rxc3 {[%emt 0:04:30]} Qd7 {[%emt 0:00:30]} 24. Rxc8 {[%emt 0:00:30]} Qxc8 {[%emt 0:00:08]} 25. Qe2 {[%emt 0:01:30]} Rb7 {[%emt 0:02:12]} 26. c4 {[%emt 0:03:30]} Rf7 {[%emt 0:02:45]} 27. Rc1 {[%emt 0:04:55]} Bh4 {[%emt 0:01:04]} 28. f3 {[%emt 0:01:30]} f4 {[%emt 0:01:23]} 29. c5 {[%emt 0:00:51]} dxc5 {[%emt 0:01:31]} 30. Rxc5 {[%emt 0:00:14]} Qb8 {[%emt 0:00:47]} 31. Qc4 {[%emt 0:00:13]} Rf8 {[%emt 0:02:37]} 32. Nxf4+ {[%emt 0:01:59]} Kh8 {[%emt 0:00:16]} 33. Ne6 {[%emt 0:01:03]} Re8 {[%emt 0:00:26]} 34. Qb5 {[%emt 0:01:01]} Be1 {[%emt 0:05:04]} 35. Qd7 {[%emt 0:01:52]} Rg8 {[%emt 0:01:39]} 36. Ng5 {[%emt 0:00:29]} h6 {[%emt 0:00:38]} 37. Nf7+ {[%emt 0:00:18]} Kh7 {[%emt 0:00:07]} 38. Rc7 {[%emt 0:03:55]} Bxb4 {[%emt 0:01:42]} 39. Qf5+ {[%emt 0:00:11]} g6 {[%emt 0:00:08]} 40. Ng5+ {[%emt 0:00:04]} 1-0

[Event "4th Chessfestival Gredine 2018"]
[Site "Ortisei"]
[Date "2018.06.19"]
[Round "4.17"]
[White "Dittmar, Peter"]
[Black "Uhl, Michael"]
[Result "0-1"]
[ECO "D36"]
[WhiteElo "2252"]
[BlackElo "2116"]
[Annotator "NA"]
[PlyCount "160"]
[EventDate "2018.06.16"]
[EventType "swiss"]
[EventCountry "ITA"]
[SourceTitle "playchess.com"]
[Source "ChessBase"]
[SourceQuality "1"]
[TimeControl "40/5400+30:1800+30"]

1. d4 {[%emt 0:05:30]} d5 {[%emt 0:01:00]} 2. c4 {[%emt 0:00:30]} e6 {[%emt 0:00:00]} 3. Nc3 {[%emt 0:00:30]} Nf6 {[%emt 0:00:00]} 4. cxd5 {[%emt 0:00:00]} exd5 {[%emt 0:00:30]} 5. Bg5 {[%emt 0:00:00]} Be7 {[%emt 0:00:30]} 6. e3 {[%emt 0:00:30]} O-O {[%emt 0:00:30]} 7. Bd3 {[%emt 0:00:00]} Nbd7 {[%emt 0:00:30]} 8. Qc2 {[%emt 0:00:00]} c6 {[%emt 0:02:30]} 9. Nf3 {[%emt 0:07:30]} Re8 {[%emt 0:00:30]} 10. O-O {[%emt 0:00:30]} Nf8 {[%emt 0:01:30]} 11. h3 {[%emt 0:00:30]} Ne4 {[%emt 0:05:30]} 12. Bf4 {[%emt 0:00:30]} f5 {[%emt 0:02:30]} 13. Ne5 {[%emt 0:00:30]} Ng6 {[%emt 0:07:30]} 14. Nxg6 {[%emt 0:14:30] D36: Queen's Gambit Declined: Exchange Variation: Main line (5 Bg5 c6 6 Qc2)} hxg6 {[%emt 0:00:30]} 15. f3 {[%emt 0:00:30] LiveBook: 15 Games} Nd6 {[%emt 0:10:30]} 16. Rad1 {[%emt 0:07:30]} Bg5 {[%emt 0:02:30] [#]} 17. Rfe1 $146 {[%emt 0:05:30]} ({Predecessor:} 17. Bxg5 Qxg5 18. f4 Qf6 19. Rf3 Bd7 20. Na4 b6 21. b3 Re7 {½-½ (44) Cebalo,M (2505)-Saric,I (2489) Sibenik 2006}) 17... Bxf4 {[%emt 0:02:30]} 18. exf4 {[%emt 0:00:00]} Rxe1+ {[%emt 0:00:30]} 19. Rxe1 {[%emt 0:00:00]} Qh4 {[%emt 0:00:30]} 20. Qd2 {[%emt 0:03:30]} Bd7 {[%emt 0:01:30]} 21. Kh2 {[%emt 0:02:30]} Kf7 {[%emt 0:02:30]} 22. g3 {[%emt 0:03:30]} Qf6 {[%emt 0:01:30]} 23. Re5 {[%emt 0:00:00]} Kf8 {[%emt 0:01:30]} 24. Na4 {[%emt 0:03:00]} b6 {[%emt 0:05:30]} 25. h4 {[%emt 0:02:30]} Nf7 {[%emt 0:03:30]} 26. Qb4+ {[%emt 0:00:30]} Kg8 $11 {[%emt 0:03:30]} ({Black should try} 26... c5 $1 $17 {[%cal Rc5b4]} 27. Nxc5 bxc5 28. Qxc5+ Kg8) 27. Re2 {[%emt 0:00:30]} Qd6 {[%emt 0:01:30]} 28. Qxd6 {[%emt 0:03:30]} Nxd6 {[%emt 0:00:30]} 29. Re7 {[%emt 0:00:30]} Rd8 {[%emt 0:00:30]} 30. Nc3 {[%emt 0:00:30]} Kf8 {[%emt 0:00:30]} 31. Re5 {[%emt 0:00:30]} Nf7 {[%emt 0:01:30]} 32. Re2 {[%emt 0:00:30]} Re8 {[%emt 0:00:00]} 33. Kg2 {[%emt 0:00:30]} Rxe2+ {[%emt 0:00:00]} 34. Bxe2 {[%emt 0:00:00]} Ke7 {[%emt 0:00:30]} 35. Kf2 {[%emt 0:00:00]} Kd6 {[%emt 0:01:30]} 36. Ke3 {[%emt 0:00:30]} c5 {[%emt 0:01:30]} 37. Nb5+ {[%emt 0:01:30]} Bxb5 {[%emt 0:15:30]} 38. Bxb5 {[%emt 0:00:30]} Ke6 {[%emt 0:02:30]} 39. Bd3 {[%emt 0:05:30]} Nd6 {[%emt 0:00:30]} 40. b3 {[%emt 0:00:30]} Kd7 {[%emt 0:34:30]} 41. Bf1 {[%emt 0:40:30]} Kc6 {[%emt 0:00:30]} 42. Bd3 {[%emt 0:01:30]} c4 {[%emt 0:12:21]} 43. Bc2 {[%emt 0:00:00]} Kb5 {[%emt 0:04:40]} 44. a3 {[%emt 0:00:00]} a5 {[%emt 0:00:00]} 45. Kd2 {[%emt 0:00:00]} Kc6 {[%emt 0:00:00]} 46. b4 {[%emt 0:00:00]} Kb5 {[%emt 0:00:00]} 47. Kc3 {[%emt 0:00:00]} axb4+ {[%emt 0:00:00]} 48. axb4 {[%emt 0:00:00]} Ka6 {[%emt 0:00:00]} 49. Kd2 {[%emt 0:00:00]} Nb5 {[%emt 0:00:00]} 50. Ke3 {[%emt 0:00:00]} Nc3 {[%emt 0:00:00]} 51. h5 {[%emt 0:00:00]} gxh5 {[%emt 0:00:00]} 52. Bxf5 {[%emt 0:00:00]} Na2 {[%emt 0:00:00]} 53. Bg6 {[%emt 0:00:00]} Nxb4 {[%emt 0:00:00]} 54. Bxh5 {[%emt 0:00:00]} Nc2+ {[%emt 0:00:00]} 55. Kd2 {[%emt 0:00:00]} Nxd4 {[%emt 0:00:00]} 56. Bf7 {[%emt 0:00:00]} Kb5 {[%emt 0:00:00]} 57. Bxd5 {[%emt 0:00:00]} Kc5 {[%emt 0:00:00]} 58. Be4 {[%emt 0:00:00]} b5 {[%emt 0:00:00]} 59. g4 {[%emt 0:00:00]} b4 {[%emt 0:00:00]} 60. f5 {[%emt 0:00:00]} c3+ {[%emt 0:00:00]} 61. Kd3 {[%emt 0:00:00]} c2 {[%emt 0:00:00]} 62. Kd2 {[%emt 0:00:00]} b3 {[%emt 0:00:00]} 63. g5 {[%emt 0:00:00]} Ne2 {[%emt 0:00:43]} 64. Bxc2 {[%emt 0:00:00]} bxc2 {[%emt 0:00:10]} 65. Kxc2 {[%emt 0:00:00]} Nd4+ {[%emt 0:00:25]} 66. Kd3 {[%emt 0:00:00]} Nxf5 {[%emt 0:00:41]} 67. Ke4 {[%emt 0:00:00]} Nh4 {[%emt 0:03:58]} 68. f4 {[%emt 0:00:00]} Kd6 {[%emt 0:00:21]} 69. f5 {[%emt 0:00:00]} Ng2 {[%emt 0:01:06]} 70. Kf3 {[%emt 0:07:00]} Ne1+ {[%emt 0:00:37]} 71. Ke4 {[%emt 0:00:30]} Nc2 {[%emt 0:00:21]} 72. Kd3 {[%emt 0:00:30]} Nb4+ {[%emt 0:00:11]} 73. Ke4 {[%emt 0:00:00]} Nc6 {[%emt 0:00:17]} 74. Kf4 {[%emt 0:01:00]} Nd8 {[%emt 0:00:27]} 75. Ke4 {[%emt 0:00:30]} Nc6 {[%emt 0:02:10]} 76. Kf4 {[%emt 0:00:30]} Nb8 {[%emt 0:00:11]} 77. Ke4 {[%emt 0:01:30]} Nd7 {[%emt 0:00:07]} 78. Kd4 {[%emt 0:00:30]} Nf8 {[%emt 0:00:18]} 79. Ke4 {[%emt 0:00:30]} Nh7 {[%emt 0:00:09]} 80. Kf4 {[%emt 0:00:30]} Kd5 {[%emt 0:02:04]} 0-1

[Event "4th Chessfestival Gredine 2018"]
[Site "Ortisei"]
[Date "2018.06.19"]
[Round "4.18"]
[White "Kornitzky, Tino"]
[Black "Jaracz, Barbara"]
[Result "1/2-1/2"]
[ECO "D10"]
[WhiteElo "2112"]
[BlackElo "2246"]
[Annotator "NA"]
[PlyCount "39"]
[EventDate "2018.06.16"]
[EventType "swiss"]
[EventCountry "ITA"]
[SourceTitle "playchess.com"]
[Source "ChessBase"]
[SourceQuality "1"]
[TimeControl "40/5400+30:1800+30"]

1. d4 {[%emt 0:00:30]} d5 {[%emt 0:01:00]} 2. c4 {[%emt 0:00:00]} c6 {[%emt 0:00:00]} 3. cxd5 {[%emt 0:00:00]} cxd5 {[%emt 0:00:00]} 4. Bf4 {[%emt 0:00:00]} Nc6 {[%emt 0:01:30]} 5. e3 {[%emt 0:00:00]} Nf6 {[%emt 0:01:30]} 6. Nc3 {[%emt 0:00:30]} Bf5 {[%emt 0:04:30]} 7. Qb3 {[%emt 0:01:30]} Qd7 {[%emt 0:03:30]} 8. Nf3 {[%emt 0:07:30]} a6 {[%emt 0:02:30]} 9. Ne5 {[%emt 0:07:30]} Nxe5 {[%emt 0:09:30]} 10. dxe5 {[%emt 0:04:30]} Ne4 {[%emt 0:01:30]} 11. Qxd5 {[%emt 0:03:30]} Nxc3 {[%emt 0:03:30]} 12. Qxd7+ {[%emt 0:00:30]} Bxd7 {[%emt 0:00:00]} 13. bxc3 {[%emt 0:00:00]} Rc8 {[%emt 0:00:00]} 14. Kd2 {[%emt 0:08:00]} (14. Rb1 $5 {[%cal Rb1b7]}) 14... Rd8 {[%emt 0:09:30]} 15. c4 {[%emt 0:08:30]} e6 $14 {[%emt 0:10:30]} 16. Kc3 {[%emt 0:04:30]} Ba4 {[%emt 0:07:30]} 17. Bd3 {[%emt 0:08:30]} Ba3 {[%emt 0:04:30]} 18. Bc2 {[%emt 0:06:30]} Bc6 {[%emt 0:02:30]} 19. Rad1 {[%emt 0:05:30]} Ke7 {[%emt 0:04:30]} 20. f3 {[%emt 0:02:30]} 1/2-1/2

[Event "4th Chessfestival Gredine 2018"]
[Site "Ortisei"]
[Date "2018.06.19"]
[Round "4.19"]
[White "Curien, Nicolas"]
[Black "De Vita, Gianni"]
[Result "0-1"]
[ECO "D00"]
[WhiteElo "2204"]
[BlackElo "2036"]
[Annotator "NA"]
[PlyCount "72"]
[EventDate "2018.06.16"]
[EventType "swiss"]
[EventCountry "ITA"]
[SourceTitle "playchess.com"]
[Source "ChessBase"]
[SourceQuality "1"]
[TimeControl "40/5400+30:1800+30"]

1. d4 {[%emt 0:00:30]} d5 {[%emt 0:01:00]} 2. Bf4 {[%emt 0:00:30]} e6 {[%emt 0:01:30]} 3. e3 {[%emt 0:01:30]} c6 {[%emt 0:03:30]} 4. h3 {[%emt 0:03:30]} f5 {[%emt 0:00:30]} 5. g4 {[%emt 0:00:30]} Bd6 {[%emt 0:01:30]} 6. Bd3 {[%emt 0:05:30]} Nf6 {[%emt 0:02:30]} 7. Nf3 {[%emt 0:10:30]} Qe7 {[%emt 0:15:30]} 8. Nbd2 {[%emt 0:03:30]} Ne4 {[%emt 0:00:30]} 9. Qe2 {[%emt 0:11:30]} Nd7 {[%emt 0:02:30]} 10. Rg1 $11 {[%emt 0:08:30]} e5 {[%emt 0:03:30]} 11. dxe5 {[%emt 0:04:30]} Nxe5 {[%emt 0:00:30]} 12. Nxe5 {[%emt 0:05:30]} Bxe5 {[%emt 0:03:30]} 13. Bxe5 {[%emt 0:02:30]} Qxe5 {[%emt 0:01:30]} 14. O-O-O {[%emt 0:02:30]} Nc5 {[%emt 0:08:30]} 15. Nf3 {[%emt 0:09:30]} Nxd3+ {[%emt 0:11:30]} 16. cxd3 {[%emt 0:02:30]} Qe7 {[%emt 0:03:30]} 17. d4 {[%emt 0:01:30]} O-O {[%emt 0:11:30]} 18. Ne5 {[%emt 0:00:30]} Be6 {[%emt 0:10:24]} 19. Kb1 {[%emt 0:00:00]} Qh4 {[%emt 0:03:46]} 20. Nd3 {[%emt 0:04:00]} Rae8 {[%emt 0:04:59]} 21. Ka1 {[%emt 0:04:28]} Bc8 {[%emt 0:00:51]} 22. Qf1 {[%emt 0:11:33]} fxg4 {[%emt 0:00:52]} 23. hxg4 {[%emt 0:00:07]} Rxe3 {[%emt 0:02:49]} 24. Rh1 {[%emt 0:00:41]} Qxg4 {[%emt 0:02:16]} 25. Rg1 {[%emt 0:00:19]} Qh3 {[%emt 0:01:05]} 26. Rg2 {[%emt 0:03:40]} Ref3 {[%emt 0:00:59]} 27. Ne5 {[%emt 0:00:30]} R3f6 {[%emt 0:00:34]} 28. Qg1 {[%emt 0:01:02]} g6 {[%emt 0:01:06]} 29. Rd3 {[%emt 0:00:08]} Qh5 {[%emt 0:00:54]} 30. Rh2 {[%emt 0:00:47]} Qf5 {[%emt 0:00:35]} 31. Rg3 {[%emt 0:00:42]} Kg7 {[%emt 0:00:23]} 32. Qh1 {[%emt 0:01:01]} Rh8 {[%emt 0:00:33]} 33. Ng4 {[%emt 0:01:08]} Re6 {[%emt 0:00:27]} 34. Rhg2 {[%emt 0:00:34]} Qf4 {[%emt 0:00:39]} 35. Nh6 {[%emt 0:00:44]} Qxh6 {[%emt 0:00:17]} 36. Rh2 {[%emt 0:00:55]} Qxh2 {[%emt 0:00:20]} 0-1

[Event "4th Chessfestival Gredine 2018"]
[Site "Ortisei"]
[Date "2018.06.19"]
[Round "4.20"]
[White "Colombo, Roberto"]
[Black "Lorscheid, Gerhard"]
[Result "0-1"]
[ECO "C41"]
[WhiteElo "2125"]
[BlackElo "2200"]
[Annotator "NA"]
[PlyCount "78"]
[EventDate "2018.06.16"]
[EventType "swiss"]
[EventCountry "ITA"]
[SourceTitle "playchess.com"]
[Source "ChessBase"]
[SourceQuality "1"]
[TimeControl "40/5400+30:1800+30"]

1. e4 {[%emt 0:00:30]} d6 {[%emt 0:01:00]} 2. d4 {[%emt 0:00:00]} Nf6 {[%emt 0:00:00]} 3. Nc3 {[%emt 0:00:00]} e5 {[%emt 0:00:00]} 4. Nf3 {[%emt 0:00:00]} Nbd7 {[%emt 0:00:30]} 5. Bc4 {[%emt 0:00:00]} Be7 {[%emt 0:00:00] LiveBook: 7102 Games} 6. O-O {[%emt 0:00:30]} Nb6 {[%emt 0:00:00]} 7. Be2 {[%emt 0:04:30]} exd4 {[%emt 0:00:30]} 8. Nxd4 {[%emt 0:02:30]} O-O {[%emt 0:00:00]} 9. f4 {[%emt 0:04:30]} Re8 {[%emt 0:02:00]} 10. Bf3 {[%emt 0:08:30]} Bf8 {[%emt 0:01:30]} 11. a4 {[%emt 0:05:30]} c5 {[%emt 0:06:30]} 12. Nde2 {[%emt 0:04:30]} Bd7 {[%emt 0:17:30]} 13. Qd3 $14 {[%emt 0:27:30]} Bc6 {[%emt 0:05:30]} 14. a5 {[%emt 0:02:30]} Nbd7 {[%emt 0:00:30]} 15. Ng3 {[%emt 0:03:30]} Rc8 {[%emt 0:05:30]} 16. b3 {[%emt 0:07:30]} b6 {[%emt 0:14:30]} 17. a6 {[%emt 0:05:30]} c4 {[%emt 0:00:30]} 18. Qd4 {[%emt 0:01:30]} cxb3 {[%emt 0:00:30]} 19. cxb3 {[%emt 0:00:48]} d5 {[%emt 0:04:30]} 20. Kh1 {[%emt 0:02:05]} Nc5 {[%emt 0:05:30]} 21. e5 {[%emt 0:05:46]} Nxb3 {[%emt 0:02:30]} 22. Qd1 {[%emt 0:00:48]} Nxa1 {[%emt 0:00:30]} 23. exf6 {[%emt 0:00:50]} Qxf6 {[%emt 0:00:30]} 24. Bb2 {[%emt 0:00:49]} d4 {[%emt 0:01:30]} 25. Nce4 {[%emt 0:00:47]} Bxe4 {[%emt 0:00:30]} 26. Bxe4 {[%emt 0:00:37]} Rxe4 {[%emt 0:02:30]} 27. Nxe4 {[%emt 0:00:05]} Qc6 {[%emt 0:00:00]} 28. Qxd4 {[%emt 0:11:54]} Nb3 {[%emt 0:00:00]} 29. Qe3 {[%emt 0:00:26]} Nc5 {[%emt 0:01:30]} 30. Ng5 {[%emt 0:00:15]} h6 {[%emt 0:00:30]} 31. Nf3 {[%emt 0:00:30]} Qe4 {[%emt 0:00:30]} 32. Qd2 {[%emt 0:00:07]} Nd3 {[%emt 0:00:30]} 33. Ba1 {[%emt 0:00:50]} Bc5 {[%emt 0:01:30]} 34. Qc3 {[%emt 0:00:13]} f6 {[%emt 0:00:30]} 35. h3 {[%emt 0:01:09]} Re8 {[%emt 0:01:30]} 36. Qb3+ {[%emt 0:00:16]} Kh8 {[%emt 0:00:30]} 37. Qf7 {[%emt 0:00:34]} Re7 {[%emt 0:02:30]} 38. Qf8+ {[%emt 0:00:38]} Kh7 {[%emt 0:00:00]} 39. g3 {[%emt 0:00:31]} Ne1 0-1

[Event "4th Chessfestival Gredine 2018"]
[Site "Ortisei"]
[Date "2018.06.20"]
[Round "5.8"]
[White "Herzog, Adolf"]
[Black "Kumar, Nikhil"]
[Result "0-1"]
[ECO "A47"]
[WhiteElo "2344"]
[BlackElo "2286"]
[Annotator "NA"]
[PlyCount "56"]
[EventDate "2018.06.16"]
[EventType "swiss"]
[EventCountry "ITA"]
[SourceTitle "playchess.com"]
[Source "ChessBase"]
[SourceQuality "1"]
[TimeControl "40/5400+30:1800+30"]

1. d4 {[%emt 0:00:30]} Nf6 {[%emt 0:01:00]} 2. Nf3 {[%emt 0:00:00]} b6 {[%emt 0:00:00]} 3. Bf4 {[%emt 0:02:00]} Bb7 {[%emt 0:00:00]} 4. e3 {[%emt 0:00:30]} g6 {[%emt 0:00:30]} 5. Nbd2 {[%emt 0:00:30]} Bg7 {[%emt 0:00:30]} 6. c3 {[%emt 0:01:30]} d6 {[%emt 0:00:30]} 7. Bc4 {[%emt 0:00:30]} O-O {[%emt 0:01:30]} 8. O-O {[%emt 0:16:30]} Nbd7 {[%emt 0:01:30]} 9. Re1 {[%emt 0:03:30]} Re8 {[%emt 0:05:30]} 10. e4 {[%emt 0:10:30]} h6 {[%emt 0:12:30]} 11. e5 {[%emt 0:03:30]} Nd5 {[%emt 0:03:30]} 12. Bg3 {[%emt 0:03:30]} dxe5 {[%emt 0:05:30]} 13. Nxe5 {[%emt 0:01:30]} Nxe5 {[%emt 0:03:30]} 14. Bxe5 {[%emt 0:07:30]} Bxe5 {[%emt 0:01:30]} 15. Rxe5 {[%emt 0:01:30]} Nf6 {[%emt 0:02:30]} 16. Qe2 {[%emt 0:05:30]} e6 {[%emt 0:08:30]} 17. Bb5 {[%emt 0:04:30]} c6 {[%emt 0:01:30]} 18. Ba4 {[%emt 0:00:00]} Nd7 {[%emt 0:00:30]} 19. Re3 {[%emt 0:01:00]} Qe7 {[%emt 0:06:30]} 20. Re1 {[%emt 0:07:30]} Rad8 {[%emt 0:00:30]} 21. Nf3 {[%emt 0:03:30]} b5 {[%emt 0:07:30]} 22. Bb3 {[%emt 0:01:30]} Nf8 {[%emt 0:09:30]} 23. Ne5 {[%emt 0:07:05]} c5 {[%emt 0:01:30]} 24. d5 {[%emt 0:02:46]} c4 {[%emt 0:01:30]} 25. dxe6 {[%emt 0:01:07]} Nxe6 {[%emt 0:00:30]} 26. Bc2 {[%emt 0:02:22]} Qg5 {[%emt 0:05:30]} 27. Rg3 {[%emt 0:03:21]} Nf4 {[%emt 0:00:38]} 28. Qe3 {[%emt 0:01:17]} Qxe5 {[%emt 0:06:04]} 0-1

[Event "4th Chessfestival Gredine 2018"]
[Site "Ortisei"]
[Date "2018.06.20"]
[Round "5.11"]
[White "Uhl, Michael"]
[Black "Bertagnolli, Alexander"]
[Result "0-1"]
[ECO "B22"]
[WhiteElo "2116"]
[BlackElo "2398"]
[Annotator "NA"]
[PlyCount "77"]
[EventDate "2018.06.16"]
[EventType "swiss"]
[EventCountry "ITA"]
[SourceTitle "playchess.com"]
[Source "ChessBase"]
[SourceQuality "1"]
[TimeControl "40/5400+30:1800+30"]

1. e4 {[%emt 0:00:30]} c5 {[%emt 0:01:00]} 2. c3 {[%emt 0:00:00]} Nf6 {[%emt 0:00:00]} 3. e5 {[%emt 0:00:00]} Nd5 {[%emt 0:00:00]} 4. d4 {[%emt 0:00:30]} cxd4 {[%emt 0:00:30]} 5. Nf3 {[%emt 0:00:30]} e6 {[%emt 0:00:00]} 6. cxd4 {[%emt 0:00:00]} d6 {[%emt 0:01:00]} 7. a3 {[%emt 0:01:00]} Nd7 {[%emt 0:00:00]} 8. Bd3 {[%emt 0:01:30]} dxe5 {[%emt 0:00:00]} 9. dxe5 {[%emt 0:00:30]} g6 {[%emt 0:02:30]} 10. O-O {[%emt 0:01:30]} Bg7 {[%emt 0:00:00]} 11. Re1 {[%emt 0:02:30]} O-O {[%emt 0:01:00]} 12. Bd2 {[%emt 0:11:30]} Nc5 {[%emt 0:01:30]} 13. Bc2 {[%emt 0:03:30]} a5 {[%emt 0:07:30]} 14. Nc3 {[%emt 0:06:30]} b6 {[%emt 0:07:30]} 15. Bg5 {[%emt 0:24:30]} Qd7 {[%emt 0:09:30]} 16. Qd2 {[%emt 0:00:30]} Nxc3 {[%emt 0:05:30]} 17. Qxc3 {[%emt 0:00:30]} Bb7 {[%emt 0:00:30]} 18. Rad1 {[%emt 0:02:30]} Bd5 {[%emt 0:00:30]} 19. Bf6 {[%emt 0:16:30]} Rfc8 {[%emt 0:00:30]} 20. Qe3 {[%emt 0:07:01]} Bxf6 {[%emt 0:01:30]} 21. exf6 {[%emt 0:00:10]} Qd8 {[%emt 0:00:00]} 22. Qg5 {[%emt 0:02:43]} Nd7 {[%emt 0:00:00]} 23. Be4 {[%emt 0:06:44]} Nxf6 {[%emt 0:01:30]} 24. Bxd5 {[%emt 0:00:22]} Nxd5 {[%emt 0:00:00]} 25. Qe5 {[%emt 0:01:20]} Qf8 {[%emt 0:02:00]} 26. Qe4 {[%emt 0:01:50]} Ra7 {[%emt 0:01:30]} 27. h4 {[%emt 0:00:37]} Rac7 {[%emt 0:01:30]} 28. Ng5 {[%emt 0:01:06]} Rc4 {[%emt 0:01:30]} 29. Qe5 {[%emt 0:00:48]} Qg7 {[%emt 0:00:30]} 30. Qd6 {[%emt 0:00:58]} R4c6 {[%emt 0:00:30]} 31. Qd7 {[%emt 0:01:13]} Qf6 {[%emt 0:08:30]} 32. Rd3 {[%emt 0:03:17]} Rc1 {[%emt 0:06:30]} 33. Rdd1 {[%emt 0:00:09]} R1c2 {[%emt 0:00:30]} 34. f3 {[%emt 0:00:40]} Rd8 {[%emt 0:01:30]} 35. Qa4 {[%emt 0:01:12]} Qxb2 {[%emt 0:01:30]} 36. Qg4 {[%emt 0:00:27]} h5 {[%emt 0:03:30]} 37. Qg3 {[%emt 0:00:23]} Qf6 {[%emt 0:00:30]} 38. Nxe6 {[%emt 0:01:07]} fxe6 {[%emt 0:00:30]} 39. Rxe6 {[%emt 0:00:05]} 0-1

[Event "4th Chessfestival Gredine 2018"]
[Site "Ortisei"]
[Date "2018.06.20"]
[Round "5.12"]
[White "Hecht, Hans-Joachim"]
[Black "Podetti, Davide"]
[Result "1-0"]
[ECO "E12"]
[WhiteElo "2327"]
[BlackElo "2186"]
[Annotator "NA"]
[PlyCount "87"]
[EventDate "2018.06.16"]
[EventType "swiss"]
[EventCountry "ITA"]
[SourceTitle "playchess.com"]
[Source "ChessBase"]
[SourceQuality "1"]
[TimeControl "40/5400+30:1800+30"]

1. d4 {[%emt 0:00:30]} Nf6 {[%emt 0:01:00]} 2. c4 {[%emt 0:00:00]} e6 {[%emt 0:00:00]} 3. Nf3 {[%emt 0:00:00]} b6 {[%emt 0:00:00]} 4. a3 {[%emt 0:00:00]} Bb7 {[%emt 0:00:30]} 5. Nc3 {[%emt 0:00:00]} d5 {[%emt 0:01:30]} 6. Bg5 {[%emt 0:00:30]} Nbd7 {[%emt 0:09:30]} 7. e3 {[%emt 0:00:30]} Be7 {[%emt 0:04:30]} 8. cxd5 {[%emt 0:04:30]} Nxd5 {[%emt 0:02:30]} 9. Bxe7 {[%emt 0:01:30]} Qxe7 {[%emt 0:01:30]} 10. Nxd5 {[%emt 0:17:30]} Bxd5 {[%emt 0:01:30]} 11. Rc1 {[%emt 0:00:30]} c5 {[%emt 0:23:30]} 12. dxc5 {[%emt 0:19:30]} O-O {[%emt 0:08:30]} 13. cxb6 {[%emt 0:03:30]} Nxb6 {[%emt 0:01:30]} 14. Ba6 {[%emt 0:00:30]} Rfd8 {[%emt 0:00:30]} 15. Qe2 {[%emt 0:05:30]} Na4 {[%emt 0:07:30]} 16. O-O {[%emt 0:05:30]} Bxf3 {[%emt 0:03:30]} 17. gxf3 {[%emt 0:03:30]} Qf6 {[%emt 0:00:30]} 18. b4 {[%emt 0:16:22]} Rd6 {[%emt 0:07:30]} 19. Bb7 {[%emt 0:05:26]} Rad8 {[%emt 0:00:00]} 20. Be4 {[%emt 0:01:11]} Qg5+ {[%emt 0:03:00]} 21. Kh1 {[%emt 0:00:05]} f5 {[%emt 0:00:30]} 22. Bc6 {[%emt 0:00:51]} Nb6 {[%emt 0:01:30]} 23. f4 {[%emt 0:00:59]} Qf6 {[%emt 0:00:30]} 24. Rfd1 {[%emt 0:01:23]} h6 {[%emt 0:01:30]} 25. b5 {[%emt 0:00:36]} e5 {[%emt 0:00:30]} 26. Rxd6 {[%emt 0:00:57]} Rxd6 {[%emt 0:00:30]} 27. fxe5 {[%emt 0:01:10]} Qxe5 {[%emt 0:00:30]} 28. Rd1 {[%emt 0:00:08]} Kh7 {[%emt 0:00:30]} 29. Rxd6 {[%emt 0:00:37]} Qxd6 {[%emt 0:00:00]} 30. Qc2 {[%emt 0:00:09]} Qe5 {[%emt 0:00:00]} 31. Kg2 {[%emt 0:00:35]} g6 {[%emt 0:00:30]} 32. Qb3 {[%emt 0:02:57]} Kg7 {[%emt 0:01:30]} 33. Qb4 {[%emt 0:00:14]} Nd5 {[%emt 0:02:08]} 34. Qc4 {[%emt 0:02:29]} Nb6 {[%emt 0:02:32]} 35. Qb4 {[%emt 0:00:12]} Nd5 {[%emt 0:00:07]} 36. Qc4 {[%emt 0:00:04]} Nb6 {[%emt 0:00:04]} 37. Qd3 {[%emt 0:00:07]} g5 {[%emt 0:00:58]} 38. a4 {[%emt 0:01:59]} Kf6 {[%emt 0:05:29]} 39. a5 {[%emt 0:00:23]} Nc8 {[%emt 0:00:13]} 40. Qd8+ {[%emt 0:00:18]} Ne7 {[%emt 0:30:11]} 41. Qh8+ {[%emt 0:34:06]} Ke6 {[%emt 0:00:04]} 42. Qxh6+ {[%emt 0:02:36]} Kf7 {[%emt 0:00:07]} 43. Qh5+ {[%emt 0:00:22]} Kf8 {[%emt 0:00:00]} 44. Qxg5 1-0